fUST/lending_fUST_20250228
["ID","MTS","AMOUNT","RATE_DAILY","PERIOD"]
[354833653,1740729075222,-632.06,0.00128767,120]
[354833654,1740729075232,-4393.23,0.00128767,120]
[354833655,1740729075243,-500.0,0.00128767,120]
[354833656,1740729075253,-500.0,0.00128767,120]
[354833657,1740729075263,-1833.79,0.00128767,120]
[354833658,1740729075276,-500.0,0.00128767,120]
[354833659,1740729075287,-500.0,0.00128767,120]
[354833660,1740729075297,-502.34783474,0.00128767,120]
[354833661,1740729075307,-500.0,0.00128767,120]
[354833662,1740729075318,-2892.98,0.00128767,120]
[354833663,1740729075328,-1008.73,0.00128767,120]
[354833664,1740729075338,-500.0,0.00128767,120]
[354833665,1740729075348,-509.9969829,0.00128767,120]
[354833666,1740729075358,-242.90367966,0.00128767,120]
[354833667,1740729075368,-500.0,0.00128767,120]
[354833668,1740729075378,-500.0,0.00128767,120]
[354833669,1740729075388,-500.0,0.00128767,120]
[354833670,1740729075398,-793.95,0.00128767,120]
[354833671,1740729075408,-6516.68,0.00128767,120]
[354833672,1740729075419,-500.0,0.00128767,120]
[354833673,1740729075429,-1565.72,0.00128767,120]
[354833674,1740729075440,-374.53,0.00128767,120]
[354833675,1740729075451,-500.0,0.00128767,120]
[354833676,1740729075462,-500.0,0.00128767,120]
[354833677,1740729075473,-500.0,0.00128767,120]
[354833678,1740729075484,-1139.58,0.00128767,120]
[354833679,1740729075494,-4010.18,0.00128767,120]
[354833680,1740729075505,-500.0,0.00128767,120]
[354833681,1740729075518,-500.0,0.00128767,120]
[354833682,1740729075528,-672.53,0.00128767,120]
[354833683,1740729075538,-1915.4,0.00128767,120]
[354833684,1740729075548,-500.0,0.00128767,120]
[354833685,1740729075558,-588.21,0.00128767,120]
[354833686,1740729075569,-584.47,0.00128767,120]
[354833687,1740729075579,-606.2,0.00128767,120]
[354833688,1740729075590,-1547.61,0.00128767,120]
[354833689,1740729075600,-500.0,0.00128767,120]
[354833690,1740729075610,-500.0,0.00128767,120]
[354833691,1740729075620,-500.0,0.00128767,120]
[354833692,1740729075630,-2877.85,0.00128767,120]
[354833693,1740729075639,-661.27,0.00128767,120]
[354833694,1740729075649,-500.0,0.00128767,30]
[354833695,1740729075660,-500.0,0.00128767,120]
[354833696,1740729075671,-812.15,0.00128767,120]
[354833697,1740729075681,-500.0,0.00128767,120]
[354833698,1740729075691,-1765.26,0.00128767,120]
[354833699,1740729075713,-899.89,0.00128767,120]
[354833700,1740729075725,-525.54,0.00128767,120]
[354833701,1740729075736,-500.0,0.00128767,120]
[354833702,1740729075747,-500.0,0.00128767,120]
[354833703,1740729075757,-612.01,0.00128767,120]
[354833704,1740729075769,-379.64671246,0.00128767,120]
[354833705,1740729075780,-500.0,0.00128767,120]
[354833706,1740729075791,-500.0,0.00128767,120]
[354833707,1740729075802,-500.0,0.00128767,120]
[354833708,1740729075812,-1314.56,0.00128767,120]
[354833709,1740729075822,-6198.23,0.00128767,120]
[354833710,1740729075833,-48801.26,0.00128767,7]
[354833711,1740729075843,-500.0,0.00128767,120]
[354833712,1740729075853,-500.0,0.00128767,120]
[354833713,1740729075863,-290.54847315,0.00128767,120]
[354833714,1740729075873,-532.68,0.00128767,120]
[354833715,1740729075883,-2002.68,0.00128767,120]
[354833716,1740729075894,-3085.87,0.00128767,120]
[354833717,1740729075903,-500.0,0.00128767,120]
[354833718,1740729075913,-500.0,0.00128767,120]
[354833719,1740729075923,-500.0,0.00128767,120]
[354833720,1740729075933,-1055.5,0.00128767,120]
[354833721,1740729075943,-500.0,0.00128767,120]
[354833722,1740729075953,-500.0,0.00128767,120]
[354833723,1740729075963,-500.0,0.00128767,120]
[354833724,1740729075973,-502.55,0.00128767,120]
[354833725,1740729075982,-749.41,0.00128767,120]
[354833726,1740729075992,-1132.97,0.00128767,120]
[354833727,1740729076002,-500.0,0.00128767,120]
[354833728,1740729076011,-500.0,0.00128767,120]
[354833729,1740729076023,-23601.55,0.00128767,120]
[354833730,1740729076033,-507.38,0.00128767,120]
[354833731,1740729076043,-536.87,0.00128767,120]
[354833732,1740729076052,-500.0,0.00128767,120]
[354833733,1740729076062,-573.08107063,0.00128767,120]
[354833734,1740729076072,-746.73,0.00128767,120]
[354833735,1740729076082,-500.0,0.00128767,120]
[354833736,1740729076092,-1089.7,0.00128767,120]
[354833737,1740729076102,-2092.1,0.00128767,120]
[354833738,1740729076112,-500.0,0.00128767,120]
[354833739,1740729076121,-500.0,0.00128767,120]
[354833740,1740729076130,-1310.9,0.00128767,120]
[354833741,1740729076140,-500.0,0.00128767,120]
[354833742,1740729076149,-500.0,0.00128767,120]
[354833743,1740729076159,-7200.0,0.0012878,120]
[354833744,1740729076169,-7200.0,0.00129054,120]
[354833745,1740729076178,-150.0,0.00129245,2]
[354833746,1740729076187,-7200.0,0.00129328,120]
[354833747,1740729076197,-7200.0,0.00129602,120]
[354833748,1740729076207,-500.0,0.00129777,120]
[354833749,1740729076216,-15939.84,0.0013,60]
[354833750,1740729076226,-7200.0,0.0013015,120]
[354833751,1740729076235,-7200.0,0.00130698,120]
[354833752,1740729076245,-500.0,0.00131219,120]
[354833753,1740729076255,-7200.0,0.00131246,120]
[354833754,1740729076267,-2598.07,0.00131306,120]
[354833755,1740729076276,-7200.0,0.00131794,120]
[354833756,1740729076286,-7200.0,0.00132342,120]
[354833757,1740729076296,-500.0,0.00132661,120]
[354833758,1740729076305,-7200.0,0.0013289,120]
[354833759,1740729076314,-7200.0,0.00133438,120]
[354833760,1740729076323,-7200.0,0.00133986,120]
[354833761,1740729076333,-500.0,0.00134103,120]
[354833762,1740729076343,-3120.34634202,0.00134534,120]
[354833763,1740729076351,-3500.0,0.00135304,30]
[354833764,1740729076362,-500.0,0.00135545,120]
[354833765,1740729076372,-2598.07,0.00136785,120]
[354833766,1740729076381,-159.194794,0.00136986,120]
[354833767,1740729076390,-500.0,0.00136987,120]
[354833768,1740729076400,-3000.0,0.00140735,20]
[354833769,1740729076410,-2376.91430952,0.00141531,120]
[354833770,1740729076420,-2598.07,0.00142264,120]
[354833771,1740729076430,-159.194794,0.00145044,120]
[354833772,1740729076439,-192.059,0.00145875,120]
[354833773,1740729076449,-250.0,0.00145875,120]
[354833774,1740729076578,-2200.0,0.00147055,120]
[354833775,1740729076588,-2598.07,0.00147744,120]
[354833776,1740729076598,-159.194794,0.00153102,120]
[354833777,1740729076608,-2598.07,0.00153223,120]
[354833778,1740729076618,-600.78715452,0.00153424,120]
[354833779,1740729076630,-500.0,0.00153424,120]
[354833780,1740729076640,-500.0,0.00153424,120]
[354833781,1740729076650,-500.0,0.00153424,120]
[354833782,1740729076660,-493.1,0.00153424,120]
[354833783,1740729076669,-500.0,0.00153424,120]
[354833784,1740729076679,-500.0,0.00153424,120]
[354833785,1740729076690,-500.0,0.00153424,120]
[354833786,1740729076700,-500.0,0.00153424,120]
[354833787,1740729076710,-500.0,0.00153424,120]
[354833788,1740729076722,-500.0,0.00153424,120]
[354833789,1740729076731,-500.0,0.00153424,120]
[354833790,1740729076741,-501.39,0.00153424,120]
[354833791,1740729076751,-500.0,0.00153424,120]
[354833792,1740729076761,-500.0,0.00153424,120]
[354833793,1740729076773,-500.0,0.00153424,120]
[354833794,1740729076782,-500.0,0.00153424,120]
[354833795,1740729076792,-531.78,0.00153424,120]
[354833796,1740729077012,-414.94083116,0.00153424,120]
[354833797,1740729077024,-500.0,0.00153424,120]
[354833798,1740729077034,-500.0,0.00153424,120]
[354833799,1740729077044,-449.78,0.00153424,120]
[354833800,1740729077053,-500.0,0.00153424,120]
[354833801,1740729077063,-500.0,0.00153424,120]
[354833802,1740729077072,-1899.72,0.00153424,120]
[354833803,1740729077082,-864.26,0.00153424,120]
[354833804,1740729077091,-807.93,0.00153424,120]
[354833805,1740729077101,-948.86,0.00153424,120]
[354833806,1740729077110,-500.0,0.00153424,120]
[354833807,1740729077120,-352.6059685,0.00153424,120]
[354833808,1740729077129,-500.0,0.00153424,120]
[354833809,1740729077139,-500.0,0.00153424,120]
[354833810,1740729077148,-291.58257911,0.00153424,120]
[354833811,1740729077158,-1043.41,0.00153424,120]
[354833812,1740729077167,-500.0,0.00153424,120]
[354833813,1740729077177,-1408.38,0.00153424,120]
[354833814,1740729077186,-871.78,0.00153424,120]
[354833815,1740729077195,-500.0,0.00153424,120]
[354833816,1740729077205,-500.0,0.00153424,120]
[354833817,1740729077213,-500.0,0.00153424,120]
[354833818,1740729077223,-851.03,0.00153424,120]
[354833819,1740729077232,-526.84,0.00153424,120]
[354833820,1740729077241,-500.0,0.00153424,120]
[354833821,1740729077250,-500.0,0.00153424,120]
[354833822,1740729077259,-500.0,0.00153424,120]
[354833823,1740729077270,-517.34926556,0.00153424,120]
[354833824,1740729077279,-500.0,0.00153424,120]
[354833825,1740729077289,-694.99,0.00153424,120]
[354833826,1740729077298,-500.0,0.00153424,120]
[354833827,1740729077308,-500.0,0.00153424,120]
[354833828,1740729077317,-500.0,0.00153424,120]
[354833829,1740729077326,-500.0,0.00153424,120]
[354833830,1740729077336,-274.27810422,0.00153424,120]
[354833831,1740729077345,-539.3,0.00153424,120]
[354833832,1740729077354,-500.0,0.00153424,120]
[354833833,1740729077364,-938.58,0.00153424,120]
[354833834,1740729077372,-500.0,0.00153424,120]
[354833835,1740729077382,-500.0,0.00153424,120]
[354833836,1740729077391,-500.0,0.00153424,120]
[354833837,1740729077400,-500.0,0.00153424,120]
[354833838,1740729077409,-708.44,0.00153424,120]
[354833839,1740729077418,-520.73,0.00153424,120]
[354833840,1740729077428,-500.0,0.00153424,120]
[354833841,1740729077436,-500.0,0.00153424,120]
[354833842,1740729077445,-186.71828088,0.00153424,120]
[354833843,1740729077454,-500.0,0.00153424,120]
[354833844,1740729077464,-500.0,0.00153424,120]
[354833845,1740729077473,-439.62,0.00153424,120]
[354833846,1740729077482,-676.19,0.00153424,120]
[354833847,1740729077491,-1222.28,0.00153424,15]
[354833848,1740729077500,-500.0,0.00153424,120]
[354833849,1740729077509,-500.0,0.00153424,120]
[354833850,1740729077519,-500.0,0.00153424,120]
[354833851,1740729077528,-500.0,0.00153424,120]
[354833852,1740729077537,-500.0,0.00153424,120]
[354833853,1740729077546,-500.0,0.00153424,120]
[354833854,1740729077555,-540.7408744,0.00153424,120]
[354833855,1740729077564,-359.71171385,0.00153424,120]
[354833856,1740729077573,-508.02,0.00153424,120]
[354833857,1740729077582,-500.0,0.00153424,120]
[354833858,1740729077591,-677.8,0.00153424,120]
[354833859,1740729077600,-500.0,0.00153424,120]
[354833860,1740729077609,-500.0,0.00153424,120]
[354833861,1740729077618,-500.0,0.00153424,120]
[354833862,1740729077627,-604.99,0.00153424,120]
[354833863,1740729077636,-494.60546939,0.00153424,120]
[354833864,1740729077645,-500.0,0.00153424,120]
[354833865,1740729077654,-530.51,0.00153424,120]
[354833866,1740729077663,-500.0,0.00153424,120]
[354833867,1740729077672,-745.29,0.00153424,120]
[354833868,1740729077681,-500.0,0.00153424,120]
[354833869,1740729077689,-500.0,0.00153424,120]
[354833870,1740729077698,-500.0,0.00153424,120]
[354833871,1740729077710,-637.05888914,0.00153424,120]
[354833872,1740729077719,-523.1,0.00153424,120]
[354833873,1740729077728,-632.05499513,0.00153424,120]
[354833874,1740729077737,-250.23074472,0.00153424,120]
[354833875,1740729077747,-500.0,0.00153424,120]
[354833876,1740729077757,-500.0,0.00153424,120]
[354833877,1740729077767,-500.0,0.00153424,120]
[354833878,1740729077776,-500.0,0.00153424,120]
[354833879,1740729077786,-500.0,0.00153424,120]
[354833880,1740729077796,-500.0,0.00153424,120]
[354833881,1740729077806,-500.0,0.00153424,120]
[354833882,1740729077815,-500.0,0.00153424,120]
[354833883,1740729077825,-748.69,0.00153424,120]
[354833884,1740729077835,-874.05,0.00153424,120]
[354833885,1740729077846,-472.45475676,0.00153424,120]
[354833886,1740729077859,-500.0,0.00153424,120]
[354833887,1740729077871,-500.0,0.00153424,120]
[354833888,1740729077880,-500.0,0.00153424,120]
[354833889,1740729077890,-500.0,0.00153424,120]
[354833890,1740729077900,-1007.44,0.00153424,120]
[354833891,1740729077910,-500.0,0.00153424,120]
[354833892,1740729077921,-500.0,0.00153424,120]
[354833893,1740729077931,-505.90987491,0.00153424,120]
[354833894,1740729077941,-500.0,0.00153424,120]
[354833895,1740729077950,-500.0,0.00153424,120]
[354833896,1740729077960,-500.0,0.00153424,120]
[354833897,1740729077970,-753.37,0.00153424,120]
[354833898,1740729077980,-500.0,0.00153424,120]
[354833899,1740729077989,-530.93,0.00153424,120]
[354833900,1740729077999,-270.41956514,0.00153424,120]
[354833901,1740729078008,-772.32,0.00153424,120]
[354833902,1740729078018,-500.0,0.00153424,120]
[354833903,1740729078027,-11613.08,0.00153424,7]
[354833904,1740729078036,-532.21,0.00153424,120]
[354833905,1740729078048,-500.0,0.00153424,120]
[354833906,1740729078058,-471.38869494,0.00153424,120]
[354833907,1740729078067,-500.0,0.00153424,120]
[354833908,1740729078077,-500.0,0.00153424,120]
[354833909,1740729078087,-1556.94,0.00153424,120]
[354833910,1740729078097,-500.0,0.00153424,120]
[354833911,1740729078106,-500.59,0.00153424,120]
[354833912,1740729078116,-500.0,0.00153424,120]
[354833913,1740729078126,-500.0,0.00153424,120]
[354833914,1740729078136,-590.72,0.00153424,120]
[354833915,1740729078146,-517.51270451,0.00153424,120]
[354833916,1740729078155,-632.06,0.00153424,120]
[354833917,1740729078165,-500.0,0.00153424,120]
[354833918,1740729078175,-4393.23,0.00153424,120]
[354833919,1740729078186,-500.0,0.00153424,120]
[354833920,1740729078197,-500.0,0.00153424,120]
[354833921,1740729078208,-1833.79,0.00153424,120]
[354833922,1740729078218,-500.0,0.00153424,120]
[354833923,1740729078227,-500.0,0.00153424,120]
[354833924,1740729078236,-500.0,0.00153424,120]
[354833925,1740729078247,-2892.98,0.00153424,120]
[354833926,1740729078353,-1008.73,0.00153424,120]
[354833927,1740729078364,-500.0,0.00153424,120]
[354833928,1740729078374,-500.0,0.00153424,120]
[354833929,1740729078384,-500.0,0.00153424,120]
[354833930,1740729078395,-500.0,0.00153424,120]
[354833931,1740729078405,-793.95,0.00153424,120]
[354833932,1740729078415,-6516.68,0.00153424,120]
[354833933,1740729078424,-500.0,0.00153424,120]
[354833934,1740729078434,-1565.72,0.00153424,120]
[354833935,1740729078444,-435.94292057,0.00153424,120]
[354833936,1740729078455,-500.0,0.00153424,120]
[354833937,1740729078465,-500.0,0.00153424,120]
[354833938,1740729078475,-1139.58,0.00153424,120]
[354833939,1740729078484,-4010.18,0.00153424,120]
[354833940,1740729078494,-500.0,0.00153424,120]
[354833941,1740729078504,-500.0,0.00153424,120]
[354833942,1740729078514,-672.53,0.00153424,120]
[354833943,1740729078526,-1915.4,0.00153424,120]
[354833944,1740729078535,-500.0,0.00153424,120]
[354833945,1740729078545,-588.21,0.00153424,120]
[354833946,1740729078555,-584.47,0.00153424,120]
[354833947,1740729078565,-606.2,0.00153424,120]
[354833948,1740729078574,-1547.61,0.00153424,120]
[354833949,1740729078584,-500.0,0.00153424,120]
[354833950,1740729078594,-500.0,0.00153424,120]
[354833951,1740729078603,-500.0,0.00153424,120]
[354833952,1740729078612,-2877.85,0.00153424,120]
[354833953,1740729078622,-661.27,0.00153424,120]
[354833954,1740729078631,-500.0,0.00153424,30]
[354833955,1740729078641,-243.44547508,0.00153424,120]
[354833956,1740729078650,-812.15,0.00153424,120]
[354833957,1740729078659,-500.0,0.00153424,120]
[354833958,1740729078669,-1765.26,0.00153424,120]
[354833959,1740729078678,-899.89,0.00153424,120]
[354833960,1740729078688,-525.54,0.00153424,120]
[354833961,1740729078697,-500.0,0.00153424,120]
[354833962,1740729078707,-500.0,0.00153424,120]
[354833963,1740729078719,-612.01,0.00153424,120]
[354833964,1740729078729,-500.0,0.00153424,120]
[354833965,1740729078738,-500.0,0.00153424,120]
[354833966,1740729078747,-500.0,0.00153424,120]
[354833967,1740729078757,-1314.56,0.00153424,120]
[354833968,1740729078768,-6198.23,0.00153424,120]
[354833969,1740729078777,-48801.26,0.00153424,7]
[354833970,1740729078787,-500.0,0.00153424,120]
[354833971,1740729078798,-500.0,0.00153424,120]
[354833972,1740729078808,-532.68,0.00153424,120]
[354833973,1740729078817,-2002.68,0.00153424,120]
[354833974,1740729078827,-3085.87,0.00153424,120]
[354833975,1740729078836,-500.0,0.00153424,120]
[354833976,1740729078846,-500.0,0.00153424,120]
[354833977,1740729078856,-500.0,0.00153424,120]
[354833978,1740729078866,-1055.5,0.00153424,120]
[354833979,1740729078876,-521.93902711,0.00153424,120]
[354833980,1740729078885,-500.0,0.00153424,120]
[354833981,1740729078894,-500.0,0.00153424,120]
[354833982,1740729078904,-502.55,0.00153424,120]
[354833983,1740729078914,-749.41,0.00153424,120]
[354833984,1740729078923,-1132.97,0.00153424,120]
[354833985,1740729078932,-500.0,0.00153424,120]
[354833986,1740729078942,-500.0,0.00153424,120]
[354833987,1740729078951,-23601.55,0.00153424,120]
[354833988,1740729078960,-507.38,0.00153424,120]
[354833989,1740729078970,-536.87,0.00153424,120]
[354833990,1740729078979,-500.0,0.00153424,120]
[354833991,1740729078988,-746.73,0.00153424,120]
[354833992,1740729078998,-500.0,0.00153424,120]
[354833993,1740729079007,-1089.7,0.00153424,120]
[354833994,1740729079017,-2092.1,0.00153424,120]
[354833995,1740729079027,-500.0,0.00153424,120]
[354833996,1740729079036,-500.0,0.00153424,120]
[354833997,1740729079046,-1310.9,0.00153424,120]
[354833998,1740729079055,-389.93865145,0.00153424,120]
[354833999,1740729079065,-500.0,0.00153424,120]
[354834000,1740729079075,-4000.0,0.00156253,30]
[354834001,1740729079085,-2598.07,0.00158703,120]
[354834002,1740729079094,-558.41214763,0.00160004,20]
[354834003,1740729079104,-159.194794,0.0016116,120]
[354834004,1740729079114,-2598.07,0.00164182,120]
[354834005,1740729079123,-159.194794,0.00169218,120]
[354834006,1740729079133,-2598.07,0.00169662,120]
[354834007,1740729079142,-150.09,0.0017,60]
[354834008,1740729079152,-1257.71,0.001703,30]
[354834009,1740729079162,-179.47950942,0.00174747,60]
[354834010,1740729079171,-3000.0,0.00175,120]
[354834011,1740729079180,-2598.07,0.00175141,120]
[354834012,1740729079190,-981.56283909,0.00177197,120]
[354834013,1740729079200,-159.194794,0.00177276,120]
[354834014,1740729079210,-500.0,0.00178082,120]
[354834015,1740729079220,-500.0,0.00178082,120]
[354834016,1740729079229,-500.0,0.00178082,120]
[354834017,1740729079239,-493.1,0.00178082,120]
[354834018,1740729079248,-500.0,0.00178082,120]
[354834019,1740729079258,-500.0,0.00178082,120]
[354834020,1740729079267,-500.0,0.00178082,120]
[354834021,1740729079277,-529.41050001,0.00178082,120]
[354834022,1740729079287,-500.0,0.00178082,120]
[354834023,1740729079296,-500.0,0.00178082,120]
[354834024,1740729079306,-500.0,0.00178082,120]
[354834025,1740729079315,-501.39,0.00178082,120]
[354834026,1740729079325,-500.0,0.00178082,120]
[354834027,1740729079335,-500.0,0.00178082,120]
[354834028,1740729079345,-500.0,0.00178082,120]
[354834029,1740729079354,-500.0,0.00178082,120]
[354834030,1740729079364,-531.78,0.00178082,120]
[354834031,1740729079373,-500.0,0.00178082,120]
[354834032,1740729079383,-500.0,0.00178082,120]
[354834033,1740729079392,-500.0,0.00178082,120]
[354834034,1740729079401,-500.0,0.00178082,120]
[354834035,1740729079410,-1899.72,0.00178082,120]
[354834036,1740729079420,-864.26,0.00178082,120]
[354834037,1740729079429,-807.93,0.00178082,120]
[354834038,1740729079438,-948.86,0.00178082,120]
[354834039,1740729079447,-386.16291682,0.00178082,120]
[354834040,1740729079457,-500.0,0.00178082,120]
[354834041,1740729079467,-500.0,0.00178082,120]
[354834042,1740729079476,-1043.41,0.00178082,120]
[354834043,1740729079486,-500.0,0.00178082,120]
[354834044,1740729079495,-1408.38,0.00178082,120]
[354834045,1740729079504,-871.78,0.00178082,120]
[354834046,1740729079514,-500.0,0.00178082,120]
[354834047,1740729079525,-500.0,0.00178082,120]
[354834048,1740729079534,-500.0,0.00178082,120]
[354834049,1740729079544,-851.03,0.00178082,120]
[354834050,1740729079553,-526.84,0.00178082,120]
[354834051,1740729079563,-576.66,0.00178082,120]
[354834052,1740729079572,-500.0,0.00178082,120]
[354834053,1740729079583,-500.0,0.00178082,120]
[354834054,1740729079592,-500.0,0.00178082,120]
[354834055,1740729079602,-694.99,0.00178082,120]
[354834056,1740729079611,-500.0,0.00178082,120]
[354834057,1740729079620,-500.0,0.00178082,120]
[354834058,1740729079629,-500.0,0.00178082,120]
[354834059,1740729079638,-539.3,0.00178082,120]
[354834060,1740729079648,-500.0,0.00178082,120]
[354834061,1740729079657,-938.58,0.00178082,120]
[354834062,1740729079667,-500.0,0.00178082,120]
[354834063,1740729079676,-500.0,0.00178082,120]
[354834064,1740729079685,-262.87435017,0.00178082,120]
[354834065,1740729079694,-500.0,0.00178082,120]
[354834066,1740729079785,-708.44,0.00178082,120]
[354834067,1740729079798,-520.73,0.00178082,120]
[354834068,1740729079807,-500.0,0.00178082,120]
[354834069,1740729079817,-500.0,0.00178082,120]
[354834070,1740729079826,-642.36506712,0.00178082,120]
[354834071,1740729079836,-275.42529824,0.00178082,120]
[354834072,1740729079845,-676.19,0.00178082,120]
[354834073,1740729079854,-1222.28,0.00178082,15]
[354834074,1740729079863,-500.0,0.00178082,120]
[354834075,1740729079872,-500.0,0.00178082,120]
[354834076,1740729079882,-500.0,0.00178082,120]
[354834077,1740729079891,-500.0,0.00178082,120]
[354834078,1740729079900,-453.55899219,0.00178082,120]
[354834079,1740729079909,-508.02,0.00178082,120]
[354834080,1740729079919,-500.0,0.00178082,120]
[354834081,1740729079929,-677.8,0.00178082,120]
[354834082,1740729079938,-500.0,0.00178082,120]
[354834083,1740729079948,-500.0,0.00178082,120]
[354834084,1740729079957,-604.99,0.00178082,120]
[354834085,1740729079967,-500.0,0.00178082,120]
[354834086,1740729079975,-530.51,0.00178082,120]
[354834087,1740729079985,-500.0,0.00178082,120]
[354834088,1740729079994,-745.29,0.00178082,120]
[354834089,1740729080004,-500.0,0.00178082,120]
[354834090,1740729080012,-504.11950349,0.00178082,120]
[354834091,1740729080022,-500.0,0.00178082,120]
[354834092,1740729080031,-523.1,0.00178082,120]
[354834093,1740729080041,-500.0,0.00178082,120]
[354834094,1740729080051,-500.0,0.00178082,120]
[354834095,1740729080060,-512.93498191,0.00178082,120]
[354834096,1740729080070,-462.25953999,0.00178082,120]
[354834097,1740729080079,-500.0,0.00178082,120]
[354834098,1740729080088,-500.0,0.00178082,120]
[354834099,1740729080097,-500.0,0.00178082,120]
[354834100,1740729080107,-500.0,0.00178082,120]
[354834101,1740729080117,-748.69,0.00178082,120]
[354834102,1740729080127,-874.05,0.00178082,120]
[354834103,1740729080137,-500.0,0.00178082,120]
[354834104,1740729080147,-500.0,0.00178082,120]
[354834105,1740729080157,-500.0,0.00178082,120]
[354834106,1740729080167,-500.0,0.00178082,120]
[354834107,1740729080176,-1007.44,0.00178082,120]
[354834108,1740729080186,-491.67086431,0.00178082,120]
[354834109,1740729080196,-500.0,0.00178082,120]
[354834110,1740729080206,-500.0,0.00178082,120]
[354834111,1740729080216,-500.0,0.00178082,120]
[354834112,1740729080226,-500.0,0.00178082,120]
[354834113,1740729080235,-753.37,0.00178082,120]
[354834114,1740729080244,-500.0,0.00178082,120]
[354834115,1740729080253,-530.93,0.00178082,120]
[354834116,1740729080263,-772.32,0.00178082,120]
[354834117,1740729080275,-578.06304745,0.00178082,120]
[354834118,1740729080285,-11613.08,0.00178082,7]
[354834119,1740729080294,-532.21,0.00178082,120]
[354834120,1740729080304,-500.0,0.00178082,120]
[354834121,1740729080313,-500.0,0.00178082,120]
[354834122,1740729080323,-500.0,0.00178082,120]
[354834123,1740729080332,-1556.94,0.00178082,120]
[354834124,1740729080342,-500.0,0.00178082,120]
[354834125,1740729080351,-500.59,0.00178082,120]
[354834126,1740729080360,-500.0,0.00178082,120]
[354834127,1740729080370,-500.0,0.00178082,120]
[354834128,1740729080380,-590.72,0.00178082,120]
[354834129,1740729080390,-632.06,0.00178082,120]
[354834130,1740729080399,-500.0,0.00178082,120]
[354834131,1740729080417,-4393.23,0.00178082,120]
[354834132,1740729080435,-500.0,0.00178082,120]
[354834133,1740729080453,-1833.79,0.00178082,120]
[354834134,1740729080474,-500.0,0.00178082,120]
[354834135,1740729080493,-500.0,0.00178082,120]
[354834136,1740729080511,-500.0,0.00178082,120]
[354834137,1740729080529,-500.0,0.00178082,120]
[354834138,1740729080544,-2892.98,0.00178082,120]
[354834139,1740729080560,-1008.73,0.00178082,120]
[354834140,1740729080578,-500.0,0.00178082,120]
[354834141,1740729080600,-500.0,0.00178082,120]
[354834142,1740729080614,-566.17698585,0.00178082,120]
[354834143,1740729080629,-500.0,0.00178082,120]
[354834144,1740729080647,-793.95,0.00178082,120]
[354834145,1740729080662,-6516.68,0.00178082,120]
[354834146,1740729080677,-500.0,0.00178082,120]
[354834147,1740729080692,-1565.72,0.00178082,120]
[354834148,1740729080707,-500.0,0.00178082,120]
[354834149,1740729080727,-500.0,0.00178082,120]
[354834150,1740729080741,-1139.58,0.00178082,120]
[354834151,1740729080756,-4010.18,0.00178082,120]
[354834152,1740729080769,-500.0,0.00178082,120]